Workbook

Sheet URF
A6: UNIVERSITIES RETIREMENT FUND
A8: RETIREMENT BENEFIT PROJECTION
A10: Input data
A12: Member name | C12: X Ample
A13: Date of birth (dd/mm/yyyy) | C13: 1974-09-29 | D13: Enter date of birth (Maximum age = 65 years)
A14: Retirement age | D14: Select retirement age in years
A15: Gender | C15: Female | D15: Select gender
A16: Marital status | C16: Married | D16: Select marital status
A17: Infomation date (dd/mm/yyyy) | C17: 2020-04-30 | D17: Date at which Member Share and salary are known
A18: Current age at information date | C18: =TRUNC((YEAR(C17)-1900)-(YEAR(C13)-1900)+(MONTH(C17)-MONTH(C13))/12)+IF(MONTH(C17)>=MONTH(C13),MONTH(C17)-MONTH(C13),12+MONTH(C17)-MONTH(C13))/12 -> 45.58333333
A19: Member Share at information date | C19: 450675 | D19: Includes the housing loan balance
A20: Current monthly pensionable salary | C20: 25675
A22: Employer contribution % towards your Share | C22: 0.1
A23: Residual of expense contribution % towards your Share | C23: 0.04227
A24: Member contribution % towards your Share | C24: 0.09 | D24: Select your current member contribution %
A26: Additional voluntary contributions (AVC):
A27: - Percentage of pensionable salary | C27: 0
A28: OR
A29: - N$ per month | C29: 0
A31: Total contribution % towards your Share | C31: =C70 -> 0.23227 | D31: Includes additional voluntary contributions %
A33: Investment return assumption (recommended rate is 10%) | C33: 0.1 | D33: Select expected future annual investment return
A34: Salary increase assumption (recommended rate is 7%) | C34: 0.07 | D34: Select expected future annual salary increase
A36: Retirement benefit projection results
A38: Age at retirement | D38: =C71 -> please input retirement age
A39: Current monthly contribution towards your Share, including additional voluntary contributions | D39: =C72 -> please input retirement age
A41: Your expected Share at retirement (future value) | D41: =C79 -> please input retirement age
A42: Your expected Share at retirement in current value terms | D42: =C80 -> please input retirement age
A44: Expected monthly pension at retirement in current value terms | D44: =IF(ISBLANK(C14),"please input retirement age",C92/12) -> please input retirement age
A45: Current monthly pensionable salary | D45: =C20 -> 25675
A46: Expected pension as % of expected pensionable salary at retirement | D46: =IF(ISBLANK(C14),"please input retirement age",C96) -> please input retirement age
A48: To attain a pension target of 75% of pensionable salary at retirement:
A49: - Additional voluntary contribution as % of pensionable salary required | D49: =IF(ISBLANK(C14),"please input retirement age",C102) -> please input retirement age
A50: OR
A51: - Additional lump sum required now | D51: =IF(ISBLANK(C14),"please input retirement age",C103) -> please input retirement age
A53: Important notes
A55: 1. The retirement benefit projection is provided by the Universities Retirement Fund as a tool to assist members with their retirement planning.
A56: 2. The results shown above are for planning purposes only. The results do not constitute an offer, guarantee or promise by the Fund.
A57: 3. The total administrative expenses and risk premiums are based on the latest approved costs as per 31 December 2019 valuation. In the retirement benefit projection calculation, allowance is made for the administrative expenses and risk premiums. The risk premiums and administrative expenses fluctuate over time.
A58: 4. The projected values shown above are based on assumptions regarding investment returns and salary increases. Actual investment returns and salary increases up to retirement will determine the final benefits.
A59: 5. The pension benefit is based on marital status, a 5 year guarantee period and 75% spouse pension (if applicable). It is also assumed that 100% of the Share is converted into an in-Fund pension and no cash lump sum is taken at retirement. The figures are shown gross of tax.
A60: 6. The pension targets pension increases in line with inflation. Targeted pension increases are not guaranteed.
A61: 7. It is assumed that the housing loan balance is repaid before date of retirement.
A67: Calculations
A68: Current annual pensionable salary | C68: =C20*12 -> 308100
A69: Dollar amount AVC into % of salary | C69: =C29*12/C68 -> 0
A70: Cont rate to Share | C70: =C24+C22+C23+C27+C69 -> 0.23227
A71: Retirement Age | C71: =IF(ISBLANK(C14),"please input retirement age",C14) -> please input retirement age
A72: Monthly contribution | C72: =IF(ISBLANK(C14),"please input retirement age",C70*C68/12) -> please input retirement age
A73: Current age | C73: =C18 -> 45.58333333
A74: Term to Retirement Date | C74: =C71-C73 -> 
A75: Effective annual rate | C75: =IF(C33<>C34,((1+C33)/(1+C34)-1),0.000000001) -> 0.02803738318
A76: Effective monthly rate | C76: =(1+C75)^(1/12)-1 -> 0.002306951204
A77: Formula FV at effective monthly rate | C77: =(1-(1+$C$76)^(-(C71-$C$73)*12))/$C$76*((1+$C$33)/(1+$C$34))^(C71-$C$73) -> 
A79: Share at retirement - FV | C79: =IF(ISBLANK(C14),"please input retirement age",C81*(1+$C$33)^(C71-$C$73)) -> please input retirement age | D79: =+FV(+(1+$C$33)^(1/12)-1,C74*12,0,-D81,0) -> 
A80: Share at retirement - PV (salary) | C80: =IF(ISBLANK(C14),"please input retirement age",C79/((1+$C$34)^(C71-$C$73))) -> please input retirement age | D80: =+FV(C76,C74*12,-C72,-C19,0) -> 
A81: Share at retirement - PV (i) | C81: =(1-(1+$C$76)^(-(C71-$C$73)*12))/$C$76*$C$72+$C$19 ->  | D81: =PV(C76,C74*12,-C72,0,0)+C19 -> 
A82: Gender | C82: =LEFT($C$15,1) -> F | D82: =LEFT($C$15,1) -> F
A83: Marital status | C83: =LEFT($C$16,1) -> M | D83: =LEFT($C$16,1) -> M
A85: LIVING ANNUITY PENSION - not applicable | C85: N/A | D85: N/A | E85: N/A
A86: Drawdown Factor LAP | C86: Minimum | D86: Optimum | E86: Maximum
A87: LAP Minimum Share N$ 1 000 000 | C87: =IF($D$79<1000000,0%,5%) ->  | D87: =IF($D$79<1000000,0%,1/VLOOKUP(ROUNDUP($C$14,0),Annuity!$B$11:$P$97,IF($C$15="Female",12,3),FALSE)) ->  | E87: =IF($D$79<1000000,0%,15%) -> 
A88: Expected pension LAP | C88: =$D$79*C87 ->  | D88: =$D$79*D87 ->  | E88: =$D$79*E87 -> 
C90: POOLED PENSION | D90: LIVING ANNUITY PENSION - not applicable
A91: Annuity Factor | C91: =ROUND(VLOOKUP(C71,'Annuities 75%'!$A$12:$F$89,IF(C82="M",IF($C$83="M",3,IF(C83="S",2,99999)),IF(C82="F",IF(C83="M",5,IF(C83="S",4,99999)),99999)),FALSE),4) ->  | D91: =D87 ->  | E91: Use optimum factor for LAP
A92: Current pension | C92: =C80/C91 -> 
A93: Expected pension | C93: =C79/C91 ->  | D93: =IF(D91>0,D79*D91,0) -> 
A94: Expected salary (yearly) | C94: =IF(ISBLANK(C14),"please input retirement age",$C$68*(1+$C$34)^(C71-$C$73)) -> please input retirement age | D94: =$C$68*(1+$C$34)^(C71-$C$73) -> 
A95: Expected salary (monthly) | C95: =C94/12 -> 
A96: Expected pension as % of salary | C96: =C93/C94 ->  | D96: =D93/D94 -> 
A97: 75% replacement ratio | C97: 0.75 | D97: 0.75
A99: Ann pens required | C99: =IF(C96>C97,0,C93*(C97/C96-1)) ->  | D99: =IF(D93>0,IF(D96>D97,0,D93*(D97/D96-1)),0) -> 
A100: Cost at NRA | C100: =C99*C91 ->  | D100: =IF(D93>0,D99/D91,0) -> 
A101: Annual cost | C101: =C100/C77*12 ->  | D101: =D100/C77*12 -> 
A102: cons % | C102: =C101/C94 ->  | D102: =D101/D94 -> 
A103: Lump sum required | C103: =C100/(1+$C$33)^(C71-$C$73) ->  | D103: =D100/(1+$C$33)^($C$71-$C$73) -> 
A105: Check | C105: =(C99+C93)/C94 ->  | D105: =(D99+D93)/D94 -> 
A106: Check extra cont | C106: =((C102+$C$70)*$C$68*C77/12*(1+$C$34)^(C71-$C$73)+($C$19)*(1+$C$33)^(C71-$C$73))/C91/C94 ->  | D106: =((D102+$C$70)*$C$68*C77/12*(1+$C$34)^(C71-$C$73)+($C$19)*(1+$C$33)^(C71-$C$73))*D91/D94 -> 
A107: Check extra ls | C107: =(($C$70)*$C$68*C77/12*(1+$C$34)^(C71-$C$73)+($C$19+C103)*(1+$C$33)^(C71-$C$73))/C91/C94 ->  | D107: =(($C$70)*$C$68*C77/12*(1+$C$34)^(C71-$C$73)+($C$19+D103)*(1+$C$33)^(C71-$C$73))*D91/D94 -> 
A110: Fund info
C111: Retirement Age for drop down | D111: Retirement Ages
C113: =IF(C18<D113,D113,ROUNDDOWN(C18,0)+1) -> 55 | D113: 55
C114: =IF(OR(C113=65,C113=""),"",C113+1) -> 56 | D114: 56
C115: =IF(OR(C114=65,C114=""),"",C114+1) -> 57 | D115: 57
C116: =IF(OR(C115=65,C115=""),"",C115+1) -> 58 | D116: 58
C117: 59 | D117: 59
C118: 60 | D118: 60
C119: 61 | D119: 61
C120: 62 | D120: 62
C121: 63 | D121: 63
C122: 64 | D122: 64
C123: 65 | D123: 65
C125: Gender
C126: Male
C127: Female
C129: Marital
C130: Single
C131: Married
C133: Member
C134: 0.07
C135: 0.08
C136: 0.09
C137: 0.1
C140: Interest Rate
C141: 0.09
C142: 0.1
C143: 0.11
C147: Salary Increase
C148: 0.06
C149: 0.07
C150: 0.08

Sheet Annuities 75% (hidden)
A1: Annuity basis | B1: New Basis - effective 01/01/2012
A3: Interest | B3: 0.06
A4: Mortality | B4: PA90 with improvements
A5: Age adj | B5: 0
A6: Spouse age | B6: 4
A7: Guarantee | B7: 7
A8: Calc year | B8: 2020
B10: Male Annuity factors (75% spouse reversion) | D10: Female Annuity factors (75% spouse reversion)
A11: Age | B11: Single life | C11: Married life | D11: Single life | E11: Married life
A12: 23 | B12: =ROUND([2]!AnnPA90Improve("YES",$B$3,$B$8,A12,"M",0,A12-$B$6,"F",$B$7,12,"arr"),4) -> 16.1133 | C12: =ROUND([2]!AnnPA90Improve("YES",$B$3,$B$8,A12,"M",75%,A12-$B$6,"F",$B$7,12,"arr"),4) -> 16.5741 | D12: =ROUND([2]!AnnPA90Improve("YES",$B$3,$B$8,A12,"F",0,A12+$B$6,"M",$B$7,12,"arr"),4) -> 16.4147 | E12: =ROUND([2]!AnnPA90Improve("YES",$B$3,$B$8,A12,"F",75%,A12+$B$6,"M",$B$7,12,"arr"),4) -> 16.5728 | G12: Formula in 1st line, rest are hard-copied
A13: 24 | B13: 16.0649 | C13: 16.5445 | D13: 16.3763 | E13: 16.5411
A14: 25 | B14: 16.0128 | C14: 16.5129 | D14: 16.3356 | E14: 16.5074
A15: 26 | B15: 15.9565 | C15: 16.4791 | D15: 16.2923 | E15: 16.4717
A16: 27 | B16: 15.8958 | C16: 16.4431 | D16: 16.2465 | E16: 16.4338
A17: 28 | B17: 15.8307 | C17: 16.4047 | D17: 16.1978 | E17: 16.3936
A18: 29 | B18: 15.7612 | C18: 16.3638 | D18: 16.1463 | E18: 16.351
A19: 30 | B19: 15.6872 | C19: 16.3204 | D19: 16.0916 | E19: 16.3059
A20: 31 | B20: 15.6087 | C20: 16.2743 | D20: 16.0338 | E20: 16.2581
A21: 32 | B21: 15.5253 | C21: 16.2255 | D21: 15.9725 | E21: 16.2074
A22: 33 | B22: 15.4369 | C22: 16.1737 | D22: 15.9077 | E22: 16.1537
A23: 34 | B23: 15.3438 | C23: 16.1189 | D23: 15.8394 | E23: 16.0969
A24: 35 | B24: 15.2458 | C24: 16.0611 | D24: 15.7675 | E24: 16.0369
A25: 36 | B25: 15.1427 | C25: 15.9999 | D25: 15.6919 | E25: 15.9735
A26: 37 | B26: 15.0342 | C26: 15.9353 | D26: 15.6124 | E26: 15.9065
A27: 38 | B27: 14.9201 | C27: 15.8671 | D27: 15.5289 | E27: 15.8357
A28: 39 | B28: 14.8004 | C28: 15.7951 | D28: 15.4411 | E28: 15.761
A29: 40 | B29: 14.6746 | C29: 15.7191 | D29: 15.3491 | E29: 15.6821
A30: 41 | B30: 14.5428 | C30: 15.6391 | D30: 15.2524 | E30: 15.599
A31: 42 | B31: 14.4048 | C31: 15.5547 | D31: 15.151 | E31: 15.5113
A32: 43 | B32: 14.2605 | C32: 15.4658 | D32: 15.0448 | E32: 15.4188
A33: 44 | B33: 14.1099 | C33: 15.3723 | D33: 14.9336 | E33: 15.3215
A34: 45 | B34: 13.9529 | C34: 15.2741 | D34: 14.8172 | E34: 15.219
A35: 46 | B35: 13.7898 | C35: 15.1709 | D35: 14.6954 | E35: 15.1112
A36: 47 | B36: 13.6205 | C36: 15.0628 | D36: 14.5681 | E36: 14.9979
A37: 48 | B37: 13.4455 | C37: 14.9495 | D37: 14.4352 | E37: 14.8789
A38: 49 | B38: 13.265 | C38: 14.831 | D38: 14.2965 | E38: 14.754
A39: 50 | B39: 13.0795 | C39: 14.7072 | D39: 14.152 | E39: 14.623
A40: 51 | B40: 12.8895 | C40: 14.5782 | D40: 14.0014 | E40: 14.4859
A41: 52 | B41: 12.6955 | C41: 14.4439 | D41: 13.8447 | E41: 14.3425
A42: 53 | B42: 12.4984 | C42: 14.3044 | D42: 13.6819 | E42: 14.1926
A43: 54 | B43: 12.2984 | C43: 14.1597 | D43: 13.5129 | E43: 14.0362
A44: 55 | B44: 12.0961 | C44: 14.0096 | D44: 13.3377 | E44: 13.8731
A45: 56 | B45: 11.8919 | C45: 13.8543 | D45: 13.1563 | E45: 13.7032
A46: 57 | B46: 11.6864 | C46: 13.6937 | D46: 12.9687 | E46: 13.5261
A47: 58 | B47: 11.48 | C47: 13.528 | D47: 12.775 | E47: 13.342
A48: 59 | B48: 11.2732 | C48: 13.357 | D48: 12.5752 | E48: 13.1508
A49: 60 | B49: 11.0639 | C49: 13.1801 | D49: 12.3696 | E49: 12.9524
A50: 61 | B50: 10.8522 | C50: 12.997 | D50: 12.1583 | E50: 12.747
A51: 62 | B51: 10.6385 | C51: 12.8079 | D51: 11.9415 | E51: 12.5347
A52: 63 | B52: 10.4232 | C52: 12.6128 | D52: 11.7196 | E52: 12.3156
A53: 64 | B53: 10.2069 | C53: 12.4118 | D53: 11.4928 | E53: 12.0899
A54: 65 | B54: 9.99 | C54: 12.205 | D54: 11.2616 | E54: 11.8578
A55: 66 | B55: 9.7731 | C55: 11.9926 | D55: 11.0264 | E55: 11.6199
A56: 67 | B56: 9.5568 | C56: 11.7749 | D56: 10.7878 | E56: 11.3764
A57: 68 | B57: 9.3416 | C57: 11.5521 | D57: 10.5462 | E57: 11.128
A58: 69 | B58: 9.1282 | C58: 11.3245 | D58: 10.3024 | E58: 10.875
A59: 70 | B59: 8.9172 | C59: 11.0926 | D59: 10.0571 | E59: 10.6183
A60: 71 | B60: 8.7094 | C60: 10.8568 | D60: 9.8109 | E60: 10.3586
A61: 72 | B61: 8.5052 | C61: 10.6177 | D61: 9.5649 | E61: 10.0968
A62: 73 | B62: 8.3054 | C62: 10.3758 | D62: 9.3197 | E62: 9.8337
A63: 74 | B63: 8.1106 | C63: 10.1317 | D63: 9.0764 | E63: 9.5703
A64: 75 | B64: 7.9215 | C64: 9.8863 | D64: 8.8359 | E64: 9.3079
A65: 76 | B65: 7.7387 | C65: 9.6402 | D65: 8.5992 | E65: 9.0476
A66: 77 | B66: 7.5628 | C66: 9.3944 | D66: 8.3674 | E66: 8.7905
A67: 78 | B67: 7.3943 | C67: 9.1498 | D67: 8.1415 | E67: 8.538
A68: 79 | B68: 7.2337 | C68: 8.9074 | D68: 7.9225 | E68: 8.2914
A69: 80 | B69: 7.0814 | C69: 8.6681 | D69: 7.7114 | E69: 8.052
A70: 81 | B70: 6.9378 | C70: 8.4331 | D70: 7.5092 | E70: 7.8211
A71: 82 | B71: 6.8033 | C71: 8.2034 | D71: 7.3168 | E71: 7.6
A72: 83 | B72: 6.6779 | C72: 7.9803 | D72: 7.1349 | E72: 7.3898
A73: 84 | B73: 6.5619 | C73: 7.7647 | D73: 6.9644 | E73: 7.1915
A74: 85 | B74: 6.4553 | C74: 7.5577 | D74: 6.8058 | E74: 7.0062
A75: 86 | B75: 6.3581 | C75: 7.3603 | D75: 6.6596 | E75: 6.8344
A76: 87 | B76: 6.2699 | C76: 7.1735 | D76: 6.5259 | E76: 6.6769
A77: 88 | B77: 6.1908 | C77: 6.9981 | D77: 6.4049 | E77: 6.5338
A78: 89 | B78: 6.1202 | C78: 6.8348 | D78: 6.2966 | E78: 6.4052
A79: 90 | B79: 6.0579 | C79: 6.684 | D79: 6.2007 | E79: 6.291
A80: 91 | B80: 6.0032 | C80: 6.5462 | D80: 6.1167 | E80: 6.1907
A81: 92 | B81: 5.9558 | C81: 6.4215 | D81: 6.044 | E81: 6.1037
A82: 93 | B82: 5.915 | C82: 6.3098 | D82: 5.9819 | E82: 6.0289
A83: 94 | B83: 5.8801 | C83: 6.2109 | D83: 5.9295 | E83: 5.9654
A84: 95 | B84: 5.8506 | C84: 6.1242 | D84: 5.8859 | E84: 5.9118
A85: 96 | B85: 5.8258 | C85: 6.0491 | D85: 5.8499 | E85: 5.8665
A86: 97 | B86: 5.8049 | C86: 5.9847 | D86: 5.8206 | E86: 5.8277
A87: 98 | B87: 5.7872 | C87: 5.9299 | D87: 5.7967 | E87: 5.7977
A88: 99 | B88: 5.772 | C88: 5.8833 | D88: 5.7771 | E88: 5.7772
A89: 100 | B89: 5.7581 | C89: 5.8436 | D89: 5.7604 | E89: 5.7604
B91: =CELL("filename") -> C:\Users\avduplessis\AppData\Local\Microsoft\Windows\INetCache\Content.Outlook\7O9QOJG9\[Universities_Retirement_Calculator_2020_25092020.xlsm]URF

Sheet Annuity (hidden)
A1: PA(90)
C3: Interest rate: | D3: 0.05
C4: Val Year | D4: 2017
B7: PA(90) -1 year plus 0.5% improvement from 2007 Males, single life | K7: PA(90) -1 year plus 0.5% improvement from 2007 Females, single life
C8: Old | D8: New | L8: Old | M8: New
B9: x | C9: a | D9: a | K9: x | L9: a | M9: a
C10: x | D10: x | L10: x | M10: x
B11: 20 | C11: 18.64306398 | D11: =[2]!AnnPA90Improve("YES",$D$3,$D$4,B11,"M",0,45,"F",0,12,"arr") -> 18.83012197 | E11: =D11/C11 -> 1.010033651 | G11: Formula in 1st line, rest are hard-copied | K11: 20 | L11: 19.1335262 | M11: =[2]!AnnPA90Improve("YES",$D$3,$D$4,K11,"F",0,45,"M",0,12,"arr") -> 19.27571971 | N11: =M11/L11 -> 1.007431642 | P11: Formula in 1st line, rest are hard-copied
B12: 21 | C12: 18.57198758 | D12: 18.7663779 | E12: 1.010466856 | K12: 21 | L12: 19.07317029 | M12: 19.22172024 | N12: 1.007788425
B13: 22 | C13: 18.49689924 | D13: 18.69935853 | E13: 1.01094558 | K13: 22 | L13: 19.00977757 | M13: 19.16497058 | N13: 1.008163852
B14: 23 | C14: 18.41721765 | D14: 18.62853179 | E14: 1.011473728 | K14: 23 | L14: 18.94319524 | M14: 19.10532892 | N14: 1.00855894
B15: 24 | C15: 18.33233721 | D15: 18.55334037 | E15: 1.012055373 | K15: 24 | L15: 18.87326282 | M15: 19.04264597 | N15: 1.008974768
B16: 25 | C16: 18.24162754 | D16: 18.4732008 | E16: 1.012694769 | K16: 25 | L16: 18.79981173 | M16: 18.97676454 | N16: 1.009412478
B17: 26 | C17: 18.14480711 | D17: 18.38750253 | E17: 1.013375476 | K17: 26 | L17: 18.72266495 | M17: 18.90751913 | N17: 1.009873284
B18: 27 | C18: 18.04195349 | D18: 18.29596309 | E18: 1.01407883 | K18: 27 | L18: 18.64163653 | M18: 18.83473544 | N18: 1.010358474
B19: 28 | C19: 17.93295826 | D19: 18.19863982 | E19: 1.014815267 | K19: 28 | L19: 18.55653114 | M19: 18.75822989 | N19: 1.010869421
B20: 29 | C20: 17.81788884 | D20: 18.09541299 | E20: 1.015575591 | K20: 29 | L20: 18.46714368 | M20: 18.67780911 | N20: 1.011407581
B21: 30 | C21: 17.6968097 | D21: 17.9863294 | E21: 1.016359994 | K21: 30 | L21: 18.37325867 | M21: 18.59326938 | N21: 1.011974507
B22: 31 | C22: 17.56923784 | D22: 17.87143318 | E22: 1.017200253 | K22: 31 | L22: 18.27464983 | M22: 18.50439608 | N22: 1.012571855
B23: 32 | C23: 17.43502978 | D23: 17.75024655 | E23: 1.018079508 | K23: 32 | L23: 18.17107948 | M23: 18.41096302 | N23: 1.013201391
B24: 33 | C24: 17.29474482 | D24: 17.62261229 | E24: 1.018957636 | K24: 33 | L24: 18.06285628 | M24: 18.31273183 | N24: 1.013833667
B25: 34 | C25: 17.14841775 | D25: 17.48904251 | E25: 1.019863335 | K25: 34 | L25: 17.94992432 | M25: 18.20998249 | N25: 1.014487982
B26: 35 | C26: 16.99572426 | D26: 17.34955187 | E26: 1.020818625 | K26: 35 | L26: 17.83203709 | M26: 18.10264985 | N26: 1.015175651
B27: 36 | C27: 16.83632242 | D27: 17.20381206 | E27: 1.021827192 | K27: 36 | L27: 17.70911764 | M27: 17.99048703 | N27: 1.015888392
B28: 37 | C28: 16.67002393 | D28: 17.05147575 | E28: 1.0228825 | K28: 37 | L28: 17.58089936 | M28: 17.87340727 | N28: 1.016637824
B29: 38 | C29: 16.496795 | D29: 16.89234004 | E29: 1.023977084 | K29: 38 | L29: 17.44728136 | M29: 17.75114269 | N29: 1.01741597
B30: 39 | C30: 16.31625031 | D30: 16.72634836 | E30: 1.025134332 | K30: 39 | L30: 17.30815265 | M30: 17.6235818 | N30: 1.018224311
B31: 40 | C31: 16.12831664 | D31: 16.55310703 | E31: 1.026338172 | K31: 40 | L31: 17.16321408 | M31: 17.49060287 | N31: 1.019075028
B32: 41 | C32: 15.9327383 | D32: 16.37251836 | E32: 1.027602289 | K32: 41 | L32: 17.01232577 | M32: 17.35190406 | N32: 1.019960721
B33: 42 | C33: 15.7295637 | D33: 16.18430881 | E33: 1.028910218 | K33: 42 | L33: 16.85550888 | M33: 17.20733364 | N33: 1.020872983
B34: 43 | C34: 15.51866114 | D34: 15.98849424 | E34: 1.030275363 | K34: 43 | L34: 16.69242941 | M34: 17.05689276 | N34: 1.02183405
B35: 44 | C35: 15.30003417 | D35: 15.78491742 | E35: 1.031691644 | K35: 44 | L35: 16.52290524 | M35: 16.9002434 | N35: 1.022837277
B36: 45 | C36: 15.07366218 | D36: 15.57354947 | E36: 1.033162962 | K36: 45 | L36: 16.34690678 | M36: 16.73719057 | N36: 1.023875085
B37: 46 | C37: 14.83980601 | D37: 15.3543377 | E37: 1.0346724 | K37: 46 | L37: 16.16422253 | M37: 16.56768391 | N37: 1.024960148
B38: 47 | C38: 14.598547 | D38: 15.1274993 | E38: 1.036233215 | K38: 47 | L38: 15.97462174 | M38: 16.39149874 | N38: 1.026096205
B39: 48 | C39: 14.35038276 | D39: 14.89307987 | E39: 1.037817605 | K39: 48 | L39: 15.7781799 | M39: 16.20839055 | N39: 1.027266177
B40: 49 | C40: 14.09563027 | D40: 14.65152584 | E40: 1.039437439 | K40: 49 | L40: 15.57479351 | M40: 16.01840652 | N40: 1.028482754
B41: 50 | C41: 13.83471311 | D41: 14.40311249 | E41: 1.041085013 | K41: 50 | L41: 15.36417785 | M41: 15.82142272 | N41: 1.029760452
B42: 51 | C42: 13.56843859 | D42: 14.14821959 | E42: 1.04273012 | K42: 51 | L42: 15.14633688 | M42: 15.6171407 | N42: 1.031083675
B43: 52 | C43: 13.29756858 | D43: 13.8875999 | E43: 1.044371369 | K43: 52 | L43: 14.9212499 | M43: 15.40553706 | N43: 1.032456206
B44: 53 | C44: 13.02295275 | D44: 13.62196753 | E44: 1.045996848 | K44: 53 | L44: 14.68902164 | M44: 15.18656466 | N44: 1.03387176
B45: 54 | C45: 12.74552277 | D45: 13.35212651 | E45: 1.047593477 | K45: 54 | L45: 14.44942703 | M45: 14.96029672 | N45: 1.035355706
B46: 55 | C46: 12.4662873 | D46: 13.07896595 | E46: 1.049146842 | K46: 55 | L46: 14.20250305 | M46: 14.72649004 | N46: 1.036893989
B47: 56 | C47: 12.18645664 | D47: 12.80345588 | E47: 1.050629913 | K47: 56 | L47: 13.94839629 | M47: 14.48515212 | N47: 1.038481544
B48: 57 | C48: 11.90718593 | D48: 12.52676856 | E48: 1.052034346 | K48: 57 | L48: 13.68721397 | M48: 14.23639623 | N48: 1.040123743
B49: 58 | C49: 11.62957829 | D49: 12.25003099 | E49: 1.053351264 | K49: 58 | L49: 13.41887955 | M49: 13.98029883 | N49: 1.041838015
B50: 59 | C50: 11.34890102 | D50: 11.97432753 | E50: 1.055108994 | K50: 59 | L50: 13.14368167 | M50: 13.71676011 | N50: 1.043601059
B51: 60 | C51: 11.06485777 | D51: 11.69508334 | E51: 1.056957404 | K51: 60 | L51: 12.86172025 | M51: 13.4460323 | N51: 1.045430318
B52: 61 | C52: 10.77776644 | D52: 11.41200808 | E52: 1.058847224 | K52: 61 | L52: 12.57316886 | M52: 13.1681877 | N52: 1.047324493
B53: 62 | C53: 10.48797 | D53: 11.12540783 | E53: 1.060777999 | K53: 62 | L53: 12.2783943 | M53: 12.88337077 | N53: 1.049271627
B54: 63 | C54: 10.19593593 | D54: 10.8356157 | E54: 1.0627387 | K54: 63 | L54: 11.9775635 | M54: 12.59191452 | N54: 1.051291819
B55: 64 | C55: 9.902135917 | D55: 10.54308889 | E55: 1.064728759 | K55: 64 | L55: 11.67101097 | M55: 12.29396146 | N55: 1.053375881
B56: 65 | C56: 9.606931926 | D56: 10.24829214 | E56: 1.06676015 | K56: 65 | L56: 11.35922238 | M56: 11.98981824 | N56: 1.055513999
B57: 66 | C57: 9.310872382 | D57: 9.951586755 | E57: 1.06881357 | K57: 66 | L57: 11.04258277 | M57: 11.67994094 | N57: 1.057718215
B58: 67 | C58: 9.014379392 | D58: 9.653518876 | E58: 1.070902217 | K58: 67 | L58: 10.7214825 | M58: 11.36469205 | N58: 1.059992594
B59: 68 | C59: 8.71793256 | D59: 9.354515111 | E59: 1.073019899 | K59: 68 | L59: 10.39652519 | M59: 11.04444268 | N59: 1.062320581
B60: 69 | C60: 8.422054174 | D60: 9.055061403 | E60: 1.075160669 | K60: 69 | L60: 10.06817894 | M60: 10.71977476 | N60: 1.064718338
B61: 70 | C61: 8.127294833 | D61: 8.755688764 | E61: 1.077318954 | K61: 70 | L61: 9.737080664 | M61: 10.39114333 | N61: 1.067172358
B62: 71 | C62: 7.834132514 | D62: 8.456959322 | E62: 1.079501694 | K62: 71 | L62: 9.403907749 | M62: 10.05917194 | N62: 1.069679989
B63: 72 | C63: 7.543130748 | D63: 8.159367488 | E63: 1.081695089 | K63: 72 | L63: 9.069258358 | M63: 9.724528719 | N63: 1.072251813
B64: 73 | C64: 7.25475876 | D64: 7.863494439 | E64: 1.083908466 | K64: 73 | L64: 8.733825271 | M64: 9.387810037 | N64: 1.074879534
B65: 74 | C65: 6.969539441 | D65: 7.569831975 | E65: 1.086130876 | K65: 74 | L65: 8.398367836 | M65: 9.049709491 | N65: 1.077555743
B66: 75 | C66: 6.688033976 | D66: 7.278927088 | E66: 1.088350794 | K66: 75 | L66: 8.063684407 | M66: 8.710991069 | N66: 1.080274305
B67: 76 | C67: 6.41068084 | D67: 6.991366823 | E67: 1.090581016 | K67: 76 | L67: 7.730499808 | M67: 8.372462483 | N67: 1.083042842
B68: 77 | C68: 6.138001252 | D68: 6.707620013 | E68: 1.092801995 | K68: 77 | L68: 7.399609006 | M68: 8.034865206 | N68: 1.085849968
B69: 78 | C69: 5.870447944 | D69: 6.428238483 | E69: 1.095016691 | K69: 78 | L69: 7.071845912 | M69: 7.699014438 | N69: 1.088685265
B70: 79 | C70: 5.608397013 | D70: 6.153708265 | E70: 1.097231214 | K70: 79 | L70: 6.747977792 | M70: 7.365768623 | N70: 1.091551995
B71: 80 | C71: 5.352331899 | D71: 5.884441135 | E71: 1.099416338 | K71: 80 | L71: 6.428755711 | M71: 7.035925876 | N71: 1.094445985
B72: 81 | C72: 5.10258769 | D72: 5.620955084 | E72: 1.10158912 | K72: 81 | L72: 6.114958691 | M72: 6.710272751 | N72: 1.097353734
B73: 82 | C73: 4.859526305 | D73: 5.363622436 | E73: 1.103733595 | K73: 82 | L73: 5.80736606 | M73: 6.389627062 | N73: 1.100262494
B74: 83 | C74: 4.623475415 | D74: 5.1128418 | E74: 1.105843838 | K74: 83 | L74: 5.506668852 | M74: 6.074810313 | N74: 1.103173348
B75: 84 | C75: 4.394728373 | D75: 4.868977501 | E75: 1.107913183 | K75: 84 | L75: 5.213514753 | M75: 5.766560112 | N75: 1.106079178
B76: 85 | C76: 4.17349315 | D76: 4.632359078 | E76: 1.109947689 | K76: 85 | L76: 4.92855025 | M76: 5.465573496 | N76: 1.108961707
B77: 86 | C77: 3.959946386 | D77: 4.403230614 | E77: 1.111941977 | K77: 86 | L77: 4.652348651 | M77: 5.172547613 | N77: 1.111814269
B78: 87 | C78: 3.754289057 | D78: 4.181803801 | E78: 1.113873689 | K78: 87 | L78: 4.385402728 | M78: 4.888108227 | N78: 1.114631547
B79: 88 | C79: 3.556615638 | D79: 3.968312429 | E79: 1.11575521 | K79: 88 | L79: 4.128174288 | M79: 4.612801727 | N79: 1.117395101
B80: 89 | C80: 3.367015804 | D80: 3.76288309 | E80: 1.11757215 | K80: 89 | L80: 3.881046418 | M80: 4.347143178 | N80: 1.120095642
B81: 90 | C81: 3.185502055 | D81: 3.565635486 | E81: 1.119332345 | K81: 90 | L81: 3.644284925 | M81: 4.091568671 | N81: 1.122735668
B82: 91 | C82: 3.012066558 | D82: 3.376611086 | E82: 1.121028045 | K82: 91 | L82: 3.418098454 | M82: 3.846397001 | N82: 1.125303163
B83: 92 | C83: 2.846659762 | D83: 3.195829636 | E83: 1.122659504 | K83: 92 | L83: 3.202659622 | M83: 3.611888884 | N83: 1.127777944
B84: 93 | C84: 2.689169533 | D84: 3.023268713 | E84: 1.124238794 | K84: 93 | L84: 2.997964086 | M84: 3.388267999 | N84: 1.130189656
B85: 94 | C85: 2.539436682 | D85: 2.858844693 | E85: 1.12577908 | K85: 94 | L85: 2.804019556 | M85: 3.175583426 | N85: 1.132511155
B86: 95 | C86: 2.397230911 | D86: 2.702431042 | E86: 1.127313614 | K86: 95 | L86: 2.620650255 | M86: 2.973898646 | N86: 1.134794176
B87: 96 | C87: 2.262253694 | D87: 2.553840002 | E87: 1.128891958 | K87: 96 | L87: 2.447593491 | M87: 2.783103787 | N87: 1.137077622
B88: 97 | C88: 2.134054673 | D88: 2.412835533 | E88: 1.130634357 | K88: 97 | L88: 2.284407513 | M88: 2.603021181 | N88: 1.139473219
B89: 98 | C89: 2.011933911 | D89: 2.27907035 | E89: 1.132775951 | K89: 98 | L89: 2.130413562 | M89: 2.433333673 | N89: 1.142188407
B90: 99 | C90: 1.894862447 | D90: 2.1520286 | E90: 1.135717583 | K90: 99 | L90: 1.984570405 | M90: 2.273565301 | N90: 1.145620884
B91: 100 | C91: 1.781060153 | D91: 2.03102506 | E91: 1.140346134 | K91: 100 | L91: 1.84510325 | M91: 2.123032686 | N91: 1.150630831
B92: 101 | C92: 1.667331092 | D92: 1.91494875 | E92: 1.14851139 | K92: 101 | L92: 1.708956865 | M92: 1.98063423 | N92: 1.158972629
B93: 102 | C93: 1.547683949 | D93: 1.801948156 | E93: 1.164286906 | K93: 102 | L93: 1.570431363 | M93: 1.844640736 | N93: 1.174607678
B94: 103 | C94: 1.410174816 | D94: 1.688813411 | E94: 1.197591526 | K94: 103 | L94: 1.418191227 | M94: 1.712075106 | N94: 1.207224438
B95: 104 | C95: 1.229970292 | D95: 1.569533146 | E95: 1.27607403 | K95: 104 | L95: 1.228542326 | M95: 1.577418572 | N95: 1.283975764
B96: 105 | C96: 0.9532571429 | D96: 1.432333966 | E96: 1.502568301 | K96: 105 | L96: 0.9491428571 | M96: 1.429911332 | N96: 1.506529097
B97: 106 | C97: 0.4583333333 | D97: 1.253133123 | E97: 2.734108632 | K97: 106 | L97: 0.4583333333 | M97: 1.247204298 | N97: 2.721173014
